bitfinex/quotes_BTCUSD_20251205
["timestamp","ask_amount","ask_price","bid_price","bid_amount"]
[1764957372381,0.29782907,89379.0,89378.0,0.00361894]
[1764957372565,0.35828907,89379.0,89378.0,0.00361894]
[1764957373136,0.68128907,89379.0,89378.0,0.00361894]
[1764957373367,0.68428907,89379.0,89378.0,0.02461894]
[1764957373779,0.68128907,89379.0,89378.0,0.00361894]
[1764957373979,0.68228907,89379.0,89378.0,0.00361894]
[1764957375477,0.68428907,89379.0,89378.0,0.02261894]
[1764957379547,0.46052287,89379.0,89378.0,0.02261894]
[1764957382105,5.52304586,89379.0,89378.0,0.02261894]
[1764957382305,5.52204586,89379.0,89378.0,0.02261894]
[1764957382510,1.43734586,89379.0,89378.0,0.00361894]
[1764957382687,1.43834586,89379.0,89378.0,0.00361894]
[1764957382893,1.55005092,89379.0,89378.0,0.02161894]
[1764957383096,4.98595092,89379.0,89378.0,0.00361894]
[1764957383410,4.29955092,89379.0,89378.0,0.00361894]
[1764957383612,0.45952287,89379.0,89378.0,0.01661894]
[1764957383817,0.45852287,89379.0,89378.0,0.00361894]
[1764957384632,0.45752287,89379.0,89378.0,0.00361894]
[1764957385061,1.99342287,89379.0,89378.0,0.00361894]
[1764957385263,0.45752287,89379.0,89378.0,0.00361894]
[1764957385689,5.45752287,89379.0,89378.0,0.00361894]
[1764957386108,5.45752287,89379.0,89348.0,0.01784]
[1764957386109,0.01119181,89351.0,89348.0,0.01784]
[1764957386309,0.01119181,89351.0,89341.0,0.01119306]
[1764957386310,0.01119269,89344.0,89341.0,0.01119306]
[1764957386507,0.01119269,89344.0,89342.0,0.14872908]
[1764957386710,0.06046,89343.0,89342.0,0.14872908]
[1764957386840,0.01119331,89339.0,89335.0,0.01119382]
[1764957387052,0.04224,89342.0,89339.0,0.01119331]
[1764957387274,0.06046,89343.0,89342.0,0.22385887]
[1764957387529,0.06046,89343.0,89341.0,0.22498195]
[1764957387664,0.06046,89343.0,89342.0,0.22385887]
[1764957387867,0.06046,89343.0,89342.0,0.00109027]
[1764957388088,0.32655637,89343.0,89342.0,0.00109027]
[1764957388742,0.1027,89343.0,89342.0,0.00109027]
[1764957388877,0.32655637,89343.0,89342.0,0.00109027]
[1764957389251,0.32755637,89343.0,89342.0,0.00109027]
[1764957389533,0.1037,89343.0,89342.0,0.00109027]
[1764957389730,0.32755637,89343.0,89342.0,0.00109027]
[1764957389947,0.1037,89343.0,89342.0,0.00109027]
[1764957390075,0.001,89343.0,89342.0,0.22494914]
[1764957390280,0.1037,89343.0,89342.0,0.22494914]
[1764957390688,0.04324,89343.0,89342.0,0.22494914]
[1764957390868,0.001,89343.0,89342.0,0.24687178]
[1764957391074,0.001,89343.0,89342.0,0.22494914]
[1764957391319,0.4287,89343.0,89342.0,0.24794914]
[1764957391832,0.4287,89343.0,89342.0,0.02409027]
[1764957391989,0.74433575,89343.0,89342.0,0.02409027]
[1764957392193,0.65255637,89343.0,89342.0,0.02409027]
[1764957392395,0.65416924,89343.0,89342.0,0.02409027]
[1764957393422,0.65316924,89343.0,89342.0,0.02409027]
[1764957393647,0.65216924,89343.0,89342.0,0.00109027]
[1764957393827,0.7618743,89343.0,89342.0,0.00109027]
[1764957394044,0.7638743,89343.0,89342.0,0.02009027]
[1764957394301,0.7817143,89343.0,89342.0,0.02009027]
[1764957394970,0.7807143,89343.0,89342.0,0.02009027]
[1764957395307,0.7817143,89343.0,89342.0,0.02009027]
[1764957396057,5.84423729,89343.0,89342.0,0.02009027]
[1764957396277,5.84423729,89343.0,89342.0,2.7e-07]
[1764957396502,0.54688644,89331.0,89330.0,0.0004]
[1764957396703,0.61370644,89331.0,89330.0,0.0004]
[1764957396929,0.7802715,89331.0,89330.0,0.0004]
[1764957397133,3.35797449,89331.0,89330.0,0.0004]
[1764957397718,3.35997449,89331.0,89330.0,0.01630686]
[1764957397917,0.323,89311.0,89303.0,0.01119783]
[1764957398175,0.323,89311.0,89300.0,0.0004]
[1764957398176,0.38982,89311.0,89300.0,0.0004]
[1764957398320,0.44668,89311.0,89300.0,0.0004]
[1764957398714,0.44668,89311.0,89306.0,0.01119745]
[1764957398939,0.44668,89311.0,89308.0,0.23513943]
[1764957399263,0.44707572,89311.0,89309.0,0.22394003]
[1764957399821,0.44807572,89311.0,89309.0,0.22394003]
[1764957400022,0.06821572,89311.0,89309.0,0.22394003]
[1764957400931,0.12507572,89311.0,89309.0,0.22394003]
[1764957401372,0.12407572,89311.0,89309.0,0.22394003]
[1764957401571,0.44707572,89311.0,89308.0,0.23513943]
[1764957401774,0.49140918,89311.0,89310.0,0.23833908]
[1764957402084,0.48940918,89311.0,89310.0,0.0024]
[1764957402289,0.48940918,89311.0,89310.0,0.0144]
[1764957402290,0.45007572,89311.0,89310.0,0.0144]
[1764957402606,0.45007572,89311.0,89310.0,0.01336966]
[1764957403009,0.45107572,89311.0,89310.0,0.01336966]
[1764957404020,0.44807572,89311.0,89310.0,0.00136966]
[1764957404218,0.55678078,89311.0,89310.0,0.00136966]
[1764957404465,5.55978078,89311.0,89310.0,0.00136966]
[1764957404596,4.43496078,89311.0,89310.0,0.00136966]
[1764957404810,0.44907572,89311.0,89310.0,0.00136966]
[1764957405022,0.44707572,89311.0,89310.0,0.00136966]
[1764957405427,0.44807572,89311.0,89310.0,0.00136966]
[1764957405679,0.45107572,89311.0,89310.0,0.00136966]
[1764957406063,0.45007572,89311.0,89310.0,0.00136966]
[1764957406259,0.56078078,89311.0,89310.0,0.00136966]
[1764957407255,0.78171736,89311.0,89310.0,0.00136966]
[1764957407458,0.78271736,89311.0,89310.0,0.00136966]
[1764957408002,0.3510123,89311.0,89310.0,0.00136966]
[1764957408351,0.6740123,89311.0,89310.0,0.00136966]
[1764957408551,0.45007572,89311.0,89310.0,0.22530874]
[1764957408776,0.45007572,89311.0,89310.0,0.00136966]
[1764957408977,0.6740123,89311.0,89310.0,0.00136966]
[1764957409372,0.7232049,89311.0,89310.0,0.00136966]
[1764957410220,0.49926832,89311.0,89310.0,0.00136966]
[1764957410461,0.39321572,89311.0,89310.0,0.22530874]
[1764957410693,0.45284572,89311.0,89310.0,0.22530874]
[1764957412819,0.45284572,89311.0,89310.0,0.00136966]
[1764957413527,0.45284572,89311.0,89310.0,0.22530874]
[1764957414325,0.45284572,89311.0,89310.0,0.00136966]
[1764957414629,0.45284572,89311.0,89310.0,0.22530874]
[1764957415198,0.6767823,89311.0,89310.0,0.00136966]
[1764957415529,0.45284572,89311.0,89310.0,0.00136966]
[1764957415742,0.6767823,89311.0,89310.0,0.00136966]
[1764957415941,0.76425973,89311.0,89310.0,0.00136966]
[1764957417316,0.6767823,89311.0,89310.0,0.00136966]
[1764957417452,0.45284572,89311.0,89310.0,0.00136966]
[1764957417656,0.45284572,89311.0,89310.0,0.22530874]
[1764957417857,0.45284572,89311.0,89310.0,0.00136966]
[1764957418064,0.32639572,89311.0,89310.0,0.22530874]
[1764957418273,0.00339572,89311.0,89310.0,0.24723138]
[1764957418890,0.00239572,89311.0,89310.0,0.24723138]
[1764957419294,0.00039572,89311.0,89310.0,0.24723138]
[1764957420303,0.00039572,89311.0,89310.0,0.39596046]
[1764957420503,0.05934899,89360.0,89356.0,0.23501378]
[1764957420706,0.01044816,89359.0,89356.0,0.23511967]
[1764957420892,0.03884,89357.0,89356.0,0.01129807]
[1764957421095,0.03884,89357.0,89356.0,0.00010688]
[1764957421226,0.03884,89352.0,89351.0,0.01119181]
[1764957421428,0.03884,89352.0,89351.0,0.00011857]
[1764957421635,0.42147,89352.0,89351.0,0.00011857]
[1764957422039,0.48823853,89352.0,89351.0,0.00011857]
[1764957422800,0.03984,89352.0,89351.0,0.00011857]
[1764957423301,0.09451,89352.0,89351.0,0.00011857]
[1764957423498,0.01119319,89340.0,89336.0,0.02907369]
[1764957423739,0.01119281,89343.0,89336.0,0.02919227]
[1764957423740,0.03606,89337.0,89336.0,0.02919227]
[1764957423948,0.09073,89337.0,89336.0,0.01799858]
[1764957424151,0.63921427,89337.0,89336.0,0.00011858]
[1764957424776,0.41534287,89337.0,89336.0,0.00011858]
[1764957424984,0.41534287,89337.0,89336.0,0.22399249]
[1764957425192,0.36067287,89337.0,89336.0,0.22399249]
[1764957425398,0.325,89337.0,89336.0,0.23099249]
[1764957426242,0.36106,89337.0,89336.0,0.23099249]
[1764957426631,0.002,89337.0,89336.0,0.27079513]
[1764957426987,0.002,89337.0,89336.0,0.24887249]
[1764957427192,0.002,89337.0,89336.0,0.27079513]
[1764957428604,0.02961,89362.0,89360.0,0.22381378]
[1764957429008,0.05467,89372.0,89371.0,0.22378623]
[1764957429309,0.05467,89372.0,89369.0,0.01118956]
[1764957429310,0.08224,89371.0,89369.0,0.22379037]
[1764957429514,0.03606,89370.0,89369.0,0.22378986]
[1764957429642,0.09073,89370.0,89368.0,0.01118968]
[1764957429845,0.41373,89369.0,89363.0,0.23499523]
[1764957430045,0.37767,89369.0,89366.0,0.23498731]
[1764957430257,0.323,89369.0,89367.0,0.22379491]
[1764957430670,0.03606,89368.0,89367.0,0.22379491]
[1764957431071,0.22379903,89367.0,89364.0,0.01784]
[1764957431287,0.03606,89365.0,89363.0,0.00011858]
[1764957431513,0.03606,89364.0,89363.0,0.00011858]
[1764957431709,0.09234287,89364.0,89363.0,0.00011858]
[1764957433448,0.09334287,89364.0,89363.0,0.00011858]
[1764957433827,0.09634287,89364.0,89363.0,0.00111858]
[1764957434584,0.09534287,89364.0,89363.0,0.00111858]
[1764957434785,0.09234287,89364.0,89363.0,0.00011858]
[1764957434949,0.09434287,89364.0,89363.0,0.00111858]
[1764957435552,0.31914663,89364.0,89363.0,0.00111858]
[1764957435953,0.75185169,89364.0,89363.0,0.00111858]
[1764957436329,0.64214663,89364.0,89363.0,0.00111858]
[1764957437796,5.65998663,89364.0,89363.0,0.00111858]
[1764957438337,0.83718663,89364.0,89363.0,0.00111858]
[1764957438755,0.83618663,89364.0,89363.0,0.00111858]
[1764957438936,3.78808663,89364.0,89363.0,0.00111858]
[1764957439140,1.01199169,89364.0,89363.0,0.00111858]
[1764957439806,1.01199169,89364.0,89338.0,0.01119344]
[1764957439807,0.22387391,89336.0,89335.0,0.14872908]
[1764957439993,0.03606,89335.0,89331.0,0.2350799]
[1764957440202,0.31460642,89335.0,89334.0,0.00036099]
[1764957441220,0.09273,89335.0,89334.0,0.01736099]
[1764957441441,0.31660642,89335.0,89334.0,0.01736099]
[1764957441853,0.31660642,89335.0,89334.0,0.01936099]
[1764957442052,0.03806,89335.0,89334.0,0.24323991]
[1764957442258,0.03806,89335.0,89334.0,0.24123991]
[1764957442259,0.002,89335.0,89334.0,0.24123991]
[1764957442644,0.003,89335.0,89334.0,0.24123991]
[1764957442997,0.001,89335.0,89334.0,0.24616255]
[1764957443279,0.002,89335.0,89334.0,0.24816255]
[1764957443481,0.002,89335.0,89334.0,0.24616255]
[1764957443643,0.001,89335.0,89334.0,0.24616255]
[1764957443840,0.05467,89353.0,89352.0,0.22383382]
[1764957444243,0.41373,89353.0,89352.0,0.22383382]
[1764957444441,0.35906,89353.0,89352.0,0.22383382]
[1764957445096,0.36006,89353.0,89352.0,0.22383382]
[1764957445305,0.03706,89353.0,89352.0,0.22383382]
[1764957445682,0.001,89353.0,89352.0,0.22383382]
[1764957446267,0.03706,89353.0,89352.0,0.22383382]
[1764957446780,0.003,89353.0,89352.0,0.22983382]
[1764957446979,0.03706,89353.0,89352.0,0.22383382]
[1764957447420,0.03806,89353.0,89352.0,0.23083382]
[1764957447735,0.03806,89353.0,89352.0,0.23183382]
[1764957448046,0.002,89353.0,89352.0,0.23183382]
[1764957448248,0.03806,89353.0,89352.0,0.23083382]
[1764957448409,0.03806,89353.0,89352.0,0.007]
[1764957448612,0.63956132,89353.0,89352.0,0.007]
[1764957449397,0.74926638,89353.0,89352.0,0.007]
[1764957450634,0.63956132,89353.0,89352.0,0.007]
[1764957450848,0.63956132,89353.0,89345.0,0.22384986]
[1764957450849,0.55803807,89348.0,89345.0,0.22384986]
[1764957451047,0.35906,89348.0,89346.0,0.22384754]
[1764957451221,0.323,89348.0,89347.0,0.22384635]
[1764957451762,0.002,89353.0,89352.0,0.22383382]
[1764957451975,0.02757,89354.0,89353.0,0.22383132]
[1764957452389,0.06363,89354.0,89353.0,0.22383132]
[1764957452595,0.02757,89354.0,89353.0,0.24575396]
[1764957452770,0.02757,89354.0,89353.0,0.22383132]
[1764957452975,0.06203,89354.0,89352.0,0.22383382]
[1764957453175,0.40436,89354.0,89353.0,0.22383132]
[1764957453356,0.40436,89354.0,89352.0,0.22383382]
[1764957453357,0.323,89353.0,89352.0,0.22383382]
[1764957453553,0.35746,89353.0,89352.0,0.22383382]
[1764957453760,0.41125,89353.0,89352.0,0.22383382]
[1764957454396,0.41125,89353.0,89351.0,0.01119181]
[1764957454622,0.08825,89352.0,89351.0,0.23502698]
[1764957454827,0.03446,89352.0,89351.0,0.23502698]
[1764957455403,0.324,89353.0,89352.0,0.22383382]
[1764957455604,0.001,89353.0,89352.0,0.24575646]
[1764957456070,0.001,89353.0,89352.0,0.15432439]
[1764957456351,0.001,89353.0,89352.0,0.13875646]
[1764957456808,0.002,89354.0,89353.0,0.24575396]
[1764957456986,0.002,89354.0,89353.0,0.39448304]
[1764957457245,0.02757,89371.0,89370.0,0.22378874]
[1764957458515,0.02757,89371.0,89370.0,0.22390738]
[1764957458721,0.02558,89375.0,89370.0,0.22390738]
[1764957458935,0.02558,89375.0,89374.0,0.22377872]
[1764957459156,0.323,89379.0,89378.0,0.22376871]
[1764957459571,0.0016207,89380.0,89379.0,0.2237662]
[1764957460205,0.0016207,89380.0,89379.0,0.24568884]
[1764957460860,0.0016207,89380.0,89379.0,0.2237662]
[1764957460861,0.0360807,89380.0,89379.0,0.2237662]
[1764957461074,0.0360807,89380.0,89379.0,0.2416062]
[1764957461287,0.0026207,89380.0,89379.0,0.2416062]
[1764957461741,0.0046207,89380.0,89379.0,0.2466062]
[1764957463194,0.0046207,89380.0,89379.0,0.02284]
[1764957463408,0.0046207,89380.0,89379.0,0.005]
[1764957463409,0.35083319,89380.0,89379.0,0.005]
[1764957463622,0.31824727,89380.0,89379.0,0.005]
[1764957463836,0.64124727,89380.0,89379.0,0.005]
[1764957464528,5.70377026,89380.0,89379.0,0.005]
[1764957464739,5.81347532,89380.0,89379.0,0.005]
[1764957464945,0.64124727,89380.0,89379.0,0.005]
[1764957465149,0.54678623,89371.0,89370.0,0.00011864]
[1764957465397,0.58124623,89371.0,89370.0,0.00011864]
[1764957465818,0.63503623,89371.0,89370.0,0.00011864]
[1764957466060,0.03446,89371.0,89370.0,0.22390738]
[1764957466635,0.08825,89371.0,89370.0,0.22390738]
[1764957466852,0.03446,89371.0,89370.0,0.22390738]
[1764957467052,0.04996,89378.0,89375.0,0.01118881]
[1764957467250,0.55796345,89376.0,89372.0,0.01118918]
[1764957467557,0.002,89371.0,89370.0,0.23909681]
[1764957467757,0.0351,89373.0,89372.0,0.22378373]
[1764957467934,0.323,89374.0,89373.0,0.22378123]
[1764957468466,0.3581,89374.0,89373.0,0.22378123]
[1764957469512,0.3581,89374.0,89372.0,0.22378373]
[1764957469713,0.323,89371.0,89370.0,0.00011864]
[1764957469985,0.3581,89371.0,89370.0,0.00011864]
[1764957470119,0.40806,89371.0,89370.0,0.00011864]
[1764957470319,0.63184623,89371.0,89370.0,0.00011864]
[1764957470556,0.74155129,89371.0,89370.0,0.00011864]
[1764957471350,0.74255129,89371.0,89370.0,0.00011864]
[1764957471633,0.74255129,89371.0,89370.0,0.00311864]
[1764957471634,0.74455129,89371.0,89370.0,0.00311864]
[1764957471971,0.74155129,89371.0,89370.0,0.00011864]
[1764957472367,0.74355129,89371.0,89370.0,0.00311864]
[1764957473319,0.74455129,89371.0,89370.0,0.00311864]
[1764957473818,0.63484623,89371.0,89370.0,0.00311864]
[1764957474379,5.63484623,89371.0,89370.0,0.00311864]
[1764957474755,5.63384623,89371.0,89370.0,0.00311864]
[1764957475089,5.63484623,89371.0,89370.0,0.00311864]
[1764957475293,5.41106,89371.0,89370.0,0.00311864]
[1764957475879,5.63484623,89371.0,89370.0,0.00311864]
[1764957476274,5.63484623,89371.0,89370.0,0.22690738]
[1764957476275,5.47080506,89371.0,89370.0,0.22690738]
[1764957476553,5.58488623,89371.0,89370.0,0.00311864]
[1764957476782,5.63484623,89371.0,89370.0,0.00311864]
[1764957478914,5.41106,89371.0,89370.0,0.00311864]
[1764957479230,5.63484623,89371.0,89370.0,0.00311864]
[1764957481589,5.63484623,89371.0,89370.0,0.22690738]
[1764957481590,5.41106,89371.0,89370.0,0.22690738]
[1764957481821,5.003,89371.0,89370.0,0.24474738]
[1764957482030,5.08806,89371.0,89370.0,0.24474738]
[1764957482443,5.0381,89371.0,89370.0,0.02095864]
[1764957482558,5.09031,89371.0,89370.0,0.24474738]
[1764957483787,5.003,89371.0,89370.0,0.24474738]
[1764957484029,5.003,89371.0,89370.0,0.26667002]
[1764957484285,5.003,89371.0,89370.0,0.24474738]
[1764957488503,5.03613,89371.0,89370.0,0.24474738]
[1764957489112,5.03613,89371.0,89370.0,0.02095864]
[1764957489350,5.31212623,89371.0,89370.0,0.00311864]
[1764957489958,5.72111927,89371.0,89370.0,0.00311864]
[1764957490170,5.63512623,89371.0,89370.0,0.00311864]
[1764957496340,5.41134,89371.0,89370.0,0.00311864]
[1764957496520,5.63512623,89371.0,89370.0,0.00311864]
[1764957500006,5.41134,89371.0,89370.0,0.00311864]
[1764957500574,5.41134,89371.0,89370.0,0.22690738]
[1764957502484,5.326,89371.0,89370.0,0.22690738]
[1764957502678,5.003,89371.0,89370.0,0.54990738]
[1764957502967,4.43635334,89371.0,89370.0,0.63435301]
[1764957503175,4.10766997,89371.0,89370.0,0.63435301]
[1764957503396,3.55646175,89371.0,89370.0,1.17989633]
[1764957503604,3.41396012,89371.0,89370.0,1.03311433]
[1764957503816,3.38039718,89371.0,89370.0,0.63435301]
[1764957504026,3.38039718,89371.0,89370.0,0.65219301]
[1764957504221,3.38039718,89371.0,89370.0,0.63135301]
[1764957504508,3.37939718,89371.0,89370.0,0.64919301]
[1764957504698,3.38239718,89371.0,89370.0,0.65919301]
[1764957504900,3.37939718,89371.0,89370.0,0.65119301]
[1764957505061,3.37939718,89371.0,89370.0,0.63335301]
[1764957505258,3.37939718,89371.0,89370.0,0.6986576]
[1764957505259,3.38239718,89371.0,89370.0,0.6986576]
[1764957505712,3.38239718,89371.0,89370.0,0.66319301]
[1764957506261,3.38239718,89371.0,89370.0,0.25983002]
[1764957506717,3.38239718,89371.0,89370.0,0.27767002]
[1764957507495,3.37939718,89371.0,89370.0,0.26767002]
[1764957507918,3.38239718,89371.0,89370.0,0.28167002]
[1764957508118,3.38239718,89371.0,89370.0,0.27767002]
[1764957508332,3.38239718,89371.0,89370.0,0.26283002]
[1764957508566,3.38239718,89371.0,89370.0,0.28067002]
[1764957509119,3.38239718,89371.0,89370.0,0.26283002]
[1764957509342,3.38239718,89371.0,89370.0,0.28067002]
[1764957514239,3.38239718,89371.0,89370.0,0.26283002]
[1764957514381,3.38239718,89371.0,89370.0,0.28067002]
[1764957519662,3.38239718,89371.0,89370.0,0.4293991]
[1764957522591,3.38401005,89371.0,89370.0,0.38963646]
[1764957522784,3.71945628,89371.0,89370.0,0.16584772]
[1764957522982,3.49567005,89371.0,89370.0,0.18368772]
[1764957523904,3.49567005,89371.0,89370.0,0.18068772]
[1764957524118,3.71945628,89371.0,89370.0,0.18068772]
[1764957524314,3.38239718,89371.0,89370.0,0.25874738]
[1764957524559,3.37939718,89371.0,89370.0,0.26667002]
[1764957525002,3.38139718,89371.0,89370.0,0.27067002]
[1764957525215,3.37939718,89371.0,89370.0,0.26367002]
[1764957525405,3.42739005,89371.0,89370.0,0.24174738]
[1764957525633,3.43039005,89371.0,89370.0,0.25774738]
[1764957525833,3.38401005,89371.0,89370.0,0.25774738]
[1764957526047,3.38401005,89371.0,89370.0,0.27967002]
[1764957526478,3.38101005,89371.0,89370.0,0.26367002]
[1764957527201,3.37939718,89371.0,89370.0,0.26667002]
[1764957527624,3.37939718,89371.0,89370.0,0.26367002]
[1764957527828,3.38139718,89371.0,89370.0,0.27067002]
[1764957528023,3.38139718,89371.0,89370.0,0.27367002]
[1764957528684,3.37939718,89371.0,89370.0,0.26667002]
[1764957528894,3.38239718,89371.0,89370.0,0.28067002]
[1764957529298,3.38239718,89371.0,89370.0,0.34258546]
[1764957529715,3.38239718,89371.0,89370.0,0.30312087]
[1764957530332,3.38239718,89371.0,89370.0,0.34258546]
[1764957531221,3.38239718,89371.0,89370.0,0.51437294]
[1764957532439,3.38239718,89371.0,89370.0,0.50037294]
[1764957532440,3.37939718,89371.0,89370.0,0.50037294]
[1764957532634,3.38239718,89371.0,89370.0,0.51137294]
[1764957532995,3.38239718,89371.0,89370.0,0.4263991]
[1764957533969,3.38239718,89371.0,89370.0,0.4293991]
[1764957537190,3.38239718,89371.0,89370.0,0.46903448]
[1764957537338,3.38239718,89371.0,89370.0,0.4293991]
[1764957537740,3.38239718,89371.0,89370.0,0.4115591]
[1764957537942,3.38239718,89371.0,89370.0,0.4293991]
[1764957538338,3.38239718,89371.0,89370.0,0.4263991]
[1764957538601,3.37939718,89371.0,89370.0,0.4153991]
[1764957538873,3.38139718,89371.0,89370.0,0.4323991]
[1764957540484,3.38139718,89371.0,89370.0,0.47203189]
[1764957540905,3.38139718,89371.0,89370.0,0.7553991]
[1764957541562,3.38139718,89371.0,89370.0,0.4145591]
[1764957541713,3.38139718,89371.0,89370.0,0.4739939]
[1764957541914,3.38139718,89371.0,89370.0,0.45010243]
[1764957542116,3.38139718,89371.0,89370.0,0.47202507]
[1764957542320,3.38139718,89371.0,89370.0,0.4323991]
[1764957544556,3.38139718,89371.0,89370.0,0.02011864]
[1764957544557,3.42616005,89371.0,89370.0,0.02011864]
[1764957544768,3.48739005,89371.0,89370.0,0.03795864]
[1764957545021,3.48739005,89371.0,89370.0,0.02011864]
[1764957545022,3.71117628,89371.0,89370.0,0.02011864]
[1764957545216,4.12580203,89371.0,89370.0,0.02011864]
[1764957545842,4.12380203,89371.0,89370.0,0.00311864]
[1764957546047,4.03200701,89371.0,89370.0,0.00011864]
[1764957547323,4.03800701,89371.0,89370.0,0.00111864]
[1764957547461,4.03800701,89371.0,89370.0,0.00011864]
[1764957547462,4.03300701,89371.0,89370.0,0.00011864]
[1764957547910,4.03300701,89371.0,89362.0,0.013]
[1764957547911,0.54680627,89363.0,89362.0,0.013]
[1764957548084,0.7953342,89363.0,89362.0,0.01311874]
[1764957548454,0.68562914,89363.0,89362.0,0.01311874]
[1764957549083,0.68762914,89363.0,89362.0,0.01311874]
[1764957550637,0.69762914,89363.0,89362.0,0.01411874]
[1764957554109,0.335,89363.0,89362.0,0.01411874]
[1764957554281,0.012,89363.0,89362.0,0.25576751]
[1764957554668,0.012,89363.0,89362.0,0.27769015]
[1764957555084,0.01,89363.0,89362.0,0.27769015]
[1764957555575,0.001,89363.0,89362.0,0.27669015]
[1764957555953,0.007,89363.0,89362.0,0.27769015]
[1764957556605,0.006,89363.0,89362.0,0.27769015]
[1764957557078,3.37922791,89371.0,89370.0,0.24571138]
[1764957558732,3.38022791,89371.0,89370.0,0.25571138]
[1764957559132,3.42499078,89371.0,89370.0,0.25162874]
[1764957559336,3.42499078,89371.0,89370.0,0.02784]
[1764957559793,3.38022791,89371.0,89370.0,0.02784]
[1764957559963,3.38022791,89371.0,89370.0,0.04976264]
[1764957562113,3.38022791,89371.0,89370.0,0.02784]
[1764957563073,3.48622078,89371.0,89370.0,0.01]
[1764957564111,3.48622078,89371.0,89370.0,0.008]
[1764957564468,0.22378874,89370.0,89369.0,0.01784]
[1764957564683,0.32978161,89370.0,89369.0,0.01784]
[1764957565180,0.10599287,89370.0,89369.0,0.01784]
[1764957566224,0.04476287,89370.0,89369.0,0.24163124]
[1764957566436,0.04576287,89370.0,89369.0,0.24163124]
[1764957566965,0.05276287,89370.0,89369.0,0.01884]
[1764957567172,0.33778161,89370.0,89369.0,0.01884]
[1764957567473,0.11399287,89370.0,89369.0,0.01884]
[1764957568499,0.11399287,89370.0,89369.0,0.24263124]
[1764957568903,0.11399287,89370.0,89369.0,0.01884]
[1764957569109,0.11399287,89370.0,89369.0,0.24263124]
[1764957569649,0.11399287,89370.0,89369.0,0.01884]
[1764957570691,0.33778161,89370.0,89369.0,0.01884]
[1764957570851,0.11399287,89370.0,89369.0,0.01884]
[1764957571777,0.33778161,89370.0,89369.0,0.01884]
[1764957572531,0.33778161,89370.0,89369.0,0.24263124]
[1764957572532,0.11399287,89370.0,89369.0,0.24263124]
[1764957572733,0.00961287,89370.0,89369.0,0.24263124]
[1764957573630,0.00961287,89370.0,89369.0,0.26455388]
[1764957576114,0.05162287,89370.0,89369.0,0.24263124]
[1764957577069,0.05162287,89370.0,89369.0,0.01884]
[1764957577519,0.11023287,89370.0,89369.0,0.01884]
[1764957577694,0.11023287,89370.0,89369.0,0.24263124]
[1764957577915,0.00961287,89370.0,89369.0,0.24263124]
[1764957578485,0.008,89370.0,89369.0,0.26455388]
[1764957579815,0.007,89370.0,89369.0,0.26455388]
[1764957580219,0.007,89370.0,89369.0,0.26755388]
[1764957580602,3.37922791,89371.0,89370.0,0.22378874]
[1764957580802,3.37922791,89371.0,89370.0,0.24571138]
[1764957582219,3.37922791,89371.0,89370.0,0.24671138]
[1764957583701,3.37922791,89371.0,89370.0,0.24971138]
[1764957584109,3.37922791,89371.0,89370.0,0.24671138]
[1764957584529,3.37922791,89371.0,89370.0,0.24771138]
[1764957586752,3.37922791,89371.0,89370.0,0.24362874]
[1764957586944,3.37922791,89371.0,89370.0,0.24771138]
[1764957587157,3.37922791,89371.0,89370.0,0.24362874]
[1764957587377,3.37922791,89371.0,89370.0,0.26555138]
[1764957588004,3.37922791,89371.0,89370.0,0.24262874]
[1764957588243,3.37922791,89371.0,89370.0,0.24162874]
[1764957588442,3.38522791,89371.0,89370.0,0.24262874]
[1764957589612,3.38622791,89371.0,89370.0,0.24262874]
[1764957590233,3.38622791,89371.0,89370.0,0.24258874]
[1764957590468,3.38622791,89371.0,89370.0,0.22478874]
[1764957590655,3.38622791,89371.0,89370.0,0.24258874]
[1764957591488,3.38622791,89371.0,89370.0,0.26451138]
[1764957599992,3.38622791,89371.0,89370.0,0.24258874]
[1764957600213,3.38622791,89371.0,89370.0,0.22478874]
[1764957600412,3.38622791,89371.0,89370.0,0.0188]
[1764957600413,3.48497791,89371.0,89370.0,0.0188]
[1764957600592,3.42657791,89371.0,89370.0,0.24258874]
[1764957600792,3.38622791,89371.0,89370.0,0.24258874]
[1764957601220,3.38622791,89371.0,89370.0,0.26451138]
[1764957601559,3.38622791,89371.0,89370.0,0.001]
[1764957601560,3.82008207,89371.0,89370.0,0.001]
[1764957601808,3.82008207,89371.0,89362.0,0.01311874]
[1764957601809,0.22380627,89363.0,89362.0,0.01311874]
[1764957602004,0.01119281,89343.0,89338.0,0.23506085]
[1764957602157,0.03007,89340.0,89339.0,0.0178]
[1764957602359,0.26421639,89339.0,89338.0,0.00011886]
[1764957602565,0.32044926,89339.0,89338.0,0.00011886]
[1764957602763,0.09658287,89339.0,89338.0,0.00011886]
[1764957603817,0.09758287,89339.0,89338.0,0.00011886]
[1764957604149,0.20548787,89339.0,89338.0,0.00011886]
[1764957604349,0.09758287,89339.0,89338.0,0.00011886]
[1764957604550,0.04652,89339.0,89338.0,0.00111886]
[1764957604747,0.10114,89339.0,89338.0,0.00111886]
[1764957604955,0.09314,89339.0,89338.0,0.00011886]
[1764957605263,0.10075287,89339.0,89338.0,0.00111886]
[1764957605481,0.21045793,89339.0,89338.0,0.00111886]
[1764957605684,0.21145793,89339.0,89338.0,0.00111886]
[1764957606555,0.20445793,89339.0,89338.0,0.00011886]
[1764957607135,0.21045793,89339.0,89338.0,0.00111886]
[1764957607310,0.20445793,89339.0,89338.0,0.00011886]
[1764957607518,0.52745793,89339.0,89338.0,0.00011886]
[1764957607699,0.53445793,89339.0,89338.0,0.00111886]
[1764957608528,0.52745793,89339.0,89338.0,0.00011886]
[1764957608976,0.52645793,89339.0,89338.0,0.00011886]
[1764957609200,0.52745793,89339.0,89338.0,0.00011886]
[1764957609958,0.04813287,89339.0,89338.0,0.00111886]
[1764957610166,0.04813287,89339.0,89338.0,0.01891886]
[1764957610167,0.009,89339.0,89338.0,0.01891886]
[1764957610371,0.009,89339.0,89338.0,0.04129578]
[1764957611544,0.009,89339.0,89338.0,0.06210066]
[1764957611753,0.009,89339.0,89338.0,0.01891886]
[1764957611953,0.03859,89339.0,89338.0,0.01891886]
[1764957612358,0.12973,89339.0,89338.0,0.00111886]
[1764957612562,0.45273,89339.0,89338.0,0.00111886]
[1764957612981,0.45273,89339.0,89338.0,0.00011886]
[1764957612982,0.44473,89339.0,89338.0,0.00011886]
[1764957613400,0.44873,89339.0,89338.0,0.00111886]
[1764957613821,0.44634287,89339.0,89338.0,0.00011886]
[1764957614048,0.55704793,89339.0,89338.0,0.00011886]
[1764957614256,0.56604793,89339.0,89338.0,0.00111886]
[1764957614878,0.45634287,89339.0,89338.0,0.00111886]
[1764957616853,0.40172287,89339.0,89338.0,0.22498776]
[1764957617077,0.07872287,89339.0,89338.0,0.22498776]